fUSD/lending_fUSD_20240324
["ID","MTS","AMOUNT","RATE_DAILY","PERIOD"]
[320301152,1711277439182,-1500.0,0.00018,2]
[320301153,1711277439191,-886893.29140872,0.00018,2]
[320301154,1711277439206,-4079.95690908,0.00018,2]
[320301155,1711277439232,-846.74987016,0.00018,2]
[320301156,1711277439243,-7119.92376626,0.00018,2]
[320301157,1711277439263,-2377.66086604,0.00018,2]
[320301158,1711277439275,-2273.122523,0.00018,2]
[320301159,1711277439289,-2214.17010427,0.00018,2]
[320301160,1711277439301,-19074.73857867,0.00018,2]
[320301161,1711277439312,-1111.52838394,0.00018,2]
[320301162,1711277439339,-951.74463,0.00018,2]
[320301163,1711277439354,-423.356324,0.00018,2]
[320301168,1711277440403,-45857.34334433,0.00018,2]
[320301169,1711277440416,-594.90771057,0.00018,2]
[320301170,1711277440429,-1300.0,0.00018,2]
[320301171,1711277440448,-20224.53650389,0.00018,2]
[320301172,1711277440826,-2925.98626232,0.00017817,2]
[320301173,1711277440838,-3007.61150543,0.00017817,2]
[320301174,1711277440858,-1466.11423225,0.00017817,2]
[320301175,1711277440867,-398.38576775,0.00018,2]
[320301176,1711277440879,-998.486475,0.00018,2]
[320301177,1711277440892,-8201.07888134,0.00018,2]
[320301178,1711277440904,-8947.21879473,0.00018,2]
[320301179,1711277440917,-8943.78386462,0.00018,2]
[320301180,1711277440931,-9077.54866152,0.00018,2]
[320301181,1711277440944,-8943.84023489,0.00018,2]
[320301182,1711277440986,-1458.91842534,0.00018,2]
[320301183,1711277441000,-865.44923091,0.00018,2]
[320301184,1711277441013,-428.1062567,0.00018,2]
[320301185,1711277441026,-3630.37638628,0.00018,2]
[320301186,1711277441039,-250.0,0.00018,2]
[320301187,1711277441062,-6484.0,0.00018,2]
[320301188,1711277441075,-5842.2075645,0.00018,2]
[320301189,1711277441097,-7965.94591512,0.00018,2]
[320301190,1711277441110,-2285.03876,0.00018,2]
[320301191,1711277441123,-676.28229467,0.00018,2]
[320301192,1711277441140,-757.03065663,0.00018,2]
[320301193,1711277441152,-731.74224067,0.00018,2]
[320301240,1711277443429,-5048.7796541,0.00018,2]
[320301242,1711277443442,-1309.52157673,0.00018,2]
[320301245,1711277443455,-8823.99346952,0.00018,2]
[320301249,1711277443486,-18670.50290935,0.00018,2]
[320301252,1711277443507,-39279.9999998,0.00018,2]
[320301254,1711277443519,-55951.12718695,0.00018,2]
[320301256,1711277443531,-1848.26223905,0.00018,2]
[320301259,1711277443543,-3059.36018308,0.00018,2]
[320301261,1711277443559,-854.00448856,0.00018,2]
[320301264,1711277443571,-1305.338685,0.00018,2]
[320301266,1711277443582,-32523.19676415,0.00018,2]
[320301270,1711277443665,-9051.3371088,0.00018,2]
[320301272,1711277443677,-716.15324493,0.00018,2]
[320301275,1711277443689,-4024.72637462,0.00018,2]
[320301277,1711277443702,-19184.69590603,0.00018,2]
[320301279,1711277443713,-6158.3479369,0.00018,2]
[320301281,1711277443722,-2541.24854936,0.00018,2]
[320301283,1711277443734,-13012.2,0.00018,2]
[320301289,1711277443787,-6663.3004991,0.00018,2]
[320301292,1711277443798,-425.105,0.00018,2]
[320301294,1711277443811,-468.433435,0.00018,2]
[320301296,1711277443823,-1625.64402695,0.00018,2]
[320301299,1711277443835,-543.44997747,0.00018,2]
[320301302,1711277443847,-1557778.05890645,0.00018,2]
[320301304,1711277443858,-256.58750765,0.00018,2]
[320301306,1711277443868,-3000.0,0.00018,2]
[320301307,1711277443878,-4862.61410462,0.00018082,2]
[320301309,1711277443888,-1136.5086899,0.00018087,2]
[320301311,1711277443898,-180.14,0.00018099,2]
[320301312,1711277443909,-4862.61410462,0.00018264,2]
[320301313,1711277443919,-215.43,0.00018274,2]
[320301314,1711277443929,-150.0,0.00018274,2]
[320301315,1711277443938,-150.0,0.00018274,2]
[320301316,1711277443948,-218.4,0.00018295,2]
[320301317,1711277443960,-200.0,0.00018297,2]
[320301318,1711277443970,-916.6435295,0.00018301,2]
[320301319,1711277443981,-218.4,0.00018314,2]
[320301320,1711277443991,-218.4,0.00018334,2]
[320301321,1711277444002,-218.4,0.00018353,2]
[320301322,1711277444012,-218.4,0.00018372,2]
[320301323,1711277444022,-218.4,0.00018391,2]
[320301324,1711277444032,-218.4,0.00018411,2]
[320301325,1711277444042,-218.4,0.0001843,2]
[320301326,1711277444052,-431.33,0.00018434,2]
[320301327,1711277444062,-4862.61410462,0.00018445,2]
[320301328,1711277444071,-218.4,0.00018449,2]
[320301329,1711277444080,-218.4,0.00018468,2]
[320301330,1711277444089,-150.0,0.00018475,2]
[320301331,1711277444099,-218.4,0.00018488,2]
[320301332,1711277444108,-218.4,0.00018507,2]
[320301333,1711277444118,-800.0,0.00018517,2]
[320301334,1711277444129,-218.4,0.00018526,2]
[320301335,1711277444138,-218.4,0.00018546,2]
[320301336,1711277444148,-218.4,0.00018565,2]
[320301337,1711277444158,-218.4,0.00018584,2]
[320301338,1711277444167,-218.4,0.00018603,2]
[320301339,1711277444177,-218.4,0.00018623,2]
[320301340,1711277444187,-4862.61410462,0.00018627,2]
[320301341,1711277444196,-155.87755,0.0001863,2]
[320301342,1711277444208,-218.4,0.00018642,2]
[320301343,1711277444218,-168.2,0.00018655,2]
[320301344,1711277444227,-218.4,0.00018661,2]
[320301345,1711277444237,-1380.0,0.00018694,2]
[320301346,1711277444247,-960.0,0.00018694,2]
[320301347,1711277444257,-2563.0,0.00018694,2]
[320301348,1711277444266,-1228.0,0.00018694,2]
[320301349,1711277444276,-1251.0,0.00018694,2]
[320301350,1711277444287,-536.0,0.00018694,2]
[320301351,1711277444296,-741.67,0.00018694,2]
[320301352,1711277444306,-804.331,0.00018694,2]
[320301353,1711277444319,-278.0,0.00018694,2]
[320301354,1711277444329,-581.255,0.00018694,2]
[320301355,1711277444338,-358.284,0.00018694,2]
[320301356,1711277444347,-1461.862,0.00018694,2]
[320301357,1711277444358,-2957.0,0.00018694,2]
[320301358,1711277444367,-2422.0,0.00018694,2]
[320301359,1711277444376,-1625.0,0.00018694,2]
[320301360,1711277444385,-213.0,0.00018694,2]
[320301361,1711277444395,-5274.44509768,0.00018694,2]
[320301362,1711277444409,-420.19390232,0.00018694,2]
[320301363,1711277444418,-2579.80611768,0.00018694,2]
[320301364,1711277444430,-625.79901039,0.00018694,2]
[320301373,1711277446361,-3000.0,0.00018694,2]
[320301374,1711277446491,-36693.39487193,0.00018694,2]
[320301375,1711277446501,-2448.0,0.00018694,2]
[320301376,1711277446511,-4768.0,0.00018694,2]
[320301377,1711277446520,-152.0,0.0001872,2]
[320301378,1711277446530,-151.0,0.0001872,2]
[320301379,1711277446540,-153.0,0.0001872,2]
[320301380,1711277446551,-200.0,0.00018738,2]
[320301381,1711277446561,-183.29669519,0.00018783,2]
[320301382,1711277446571,-235.94800374,0.00018786,2]
[320301383,1711277446580,-4862.61410462,0.00018809,2]
[320301384,1711277446590,-5000.0,0.00018812,2]
[320301385,1711277446599,-801.79057327,0.00018859,2]
[320301386,1711277446609,-5000.0,0.00018865,2]
[320301387,1711277446618,-768.8732437,0.000189,2]
[320301388,1711277446628,-394.52470016,0.000189,2]
[320301389,1711277446637,-152.08525187,0.00018903,2]
[320301390,1711277446647,-190.93,0.00018911,2]
[320301391,1711277446656,-190.93,0.00018931,2]
[320301392,1711277446665,-190.93,0.00018951,2]
[320301393,1711277446675,-2728.91236828,0.0001897,2]
[320301394,1711277446794,-3338.02654779,0.0001897,2]
[320301395,1711277446810,-263.04335995,0.0001897,2]
[320301396,1711277446830,-325.39945529,0.0001897,2]
[320301397,1711277446842,-325.05,0.0001897,2]
[320301402,1711277561141,-520.77623655,0.00016436,2]
[320301403,1711277561164,-150.0,0.00016437,2]
[320301404,1711277561185,-298.340456,0.00016438,2]
[320301405,1711277561207,-25337.49234943,0.00016438,2]
[320301406,1711277561228,-208.6233,0.00017697,2]
[320301407,1711277561250,-152.0,0.00017835,2]
[320301408,1711277561271,-151.0,0.00017835,2]
[320301409,1711277561293,-153.0,0.00017835,2]
[320301410,1711277561314,-500.0,0.000179,2]
[320301411,1711277575366,52555.9756,0.000179,2]
[320301412,1711277583902,455.79906707,0.00017999,2]
[320301413,1711277592589,136150.1263,0.000179,2]
[320301414,1711277594932,1989.9779,0.000179,2]
[320301415,1711277598606,151.0324119,0.00017988,2]
[320301416,1711277602566,1757.9264,0.00017888,2]
[320301417,1711277638136,500.0,0.000179,2]
[320301418,1711277700193,2431.30705231,0.000179,2]
[320301419,1711277755649,321.39,0.00015935,2]
[320301420,1711277766593,231.3247,0.000179,2]
[320301421,1711277767741,157.29,0.00017847,2]
[320301422,1711277767960,157.29,0.00017866,2]
[320301423,1711277768154,157.29,0.00017885,2]
[320301424,1711277768362,157.29,0.00017903,2]
[320301425,1711277768737,157.29,0.00017922,2]
[320301426,1711277769160,157.29,0.00017941,2]
[320301427,1711277769207,157.29,0.0001796,2]
[320301428,1711277769378,157.29,0.00017979,2]
[320301429,1711277769571,157.29,0.00017997,2]
[320301430,1711277775390,43448.69478739,0.000179,2]
[320301431,1711277778490,256.29108124,0.000179,2]
[320301432,1711277782457,180.25053195,0.000179,2]
[320301433,1711277822203,300.0,0.00017999,2]
[320301436,1711277913672,170.86072082,0.000179,2]
[320301437,1711277917670,261.94,0.00017737,2]
[320301438,1711277942118,150.42,0.00017878,2]
[320301439,1711277942347,150.42,0.00017963,2]
[320301440,1711277944452,570.7,0.00017732,2]
[320301441,1711278011066,666.754628,0.0001791,2]
[320301442,1711278017768,323.71729788,0.00017999,2]
[320301443,1711278019178,250.040071,0.00017819,2]
[320301444,1711278019741,4004.14613871,0.00017999,2]
[320301445,1711278021277,372.45312847,0.00017999,2]
[320301446,1711278023016,746.63794719,0.00016199,2]
[320301447,1711278025868,267.96569406,0.00017999,2]
[320301448,1711278029860,178.01153981,0.00017099,2]
[320301449,1711278030829,231.90185224,0.00016919,2]
[320301450,1711278041717,154.0,0.00017835,2]
[320301451,1711278045751,251.10462106,0.00017819,2]
[320301452,1711278054559,152.0,0.00017835,2]
[320301453,1711278057250,183.7,0.00017667,2]
[320301454,1711278057281,151.0,0.00017835,2]
[320301455,1711278059802,265.68120969,0.00017999,2]
[320301456,1711278061827,267.96569406,0.00017999,2]
[320301457,1711278062889,564.11666661,0.000179,2]
[320301458,1711278065632,305.86844967,0.00017999,2]
[320301459,1711278072784,350.0175,0.000179,2]
[320301460,1711278077626,1074.23724674,0.00017999,2]
[320301461,1711278093450,4380.04071722,0.00017999,2]
[320301462,1711278098239,5497.6237,0.000179,2]
[320301463,1711278100340,3861.03489534,0.00017999,2]
[320301464,1711278101687,178.55640154,0.000179,2]
[320301465,1711278113455,4111.73422792,0.00017999,2]
[320301466,1711278120282,2751.0,0.00017655,2]
[320301467,1711278122091,267.96569406,0.00017999,2]
[320301468,1711278123745,323.71729788,0.00017999,2]
[320301470,1711278133994,10730.7273,0.000179,2]
[320301471,1711278170071,415.74,0.00017652,2]
[320301472,1711278187110,258.8,0.00017652,2]
[320301473,1711278203650,291.21,0.00017652,2]
[320301474,1711278208153,327.51,0.00015742,2]
[320301475,1711278224870,2500.0,0.000175,2]
[320301476,1711278225698,250.0,0.00017651,2]
[320301477,1711278242391,184.51936639,0.0002,7]
[320301478,1711278263584,502.63,0.00017647,2]
[320301479,1711278274326,9611.8393,0.000179,2]
[320301481,1711278304087,150.0,0.000162,2]
[320301482,1711278304362,150.0,0.00016221,2]
[320301483,1711278304791,150.0,0.00016242,2]
[320301484,1711278305109,150.0,0.00016263,2]
[320301485,1711278305461,150.0,0.00016284,2]
[320301486,1711278305799,150.0,0.00016305,2]
[320301487,1711278305900,500.0,0.00017647,2]
[320301488,1711278306107,150.0,0.00016326,2]
[320301489,1711278306471,150.0,0.00016347,2]
[320301490,1711278306860,150.0,0.00016367,2]
[320301491,1711278307183,150.0,0.00016388,2]
[320301492,1711278307610,150.0,0.00016409,2]
[320301493,1711278307963,150.0,0.0001643,2]
[320301494,1711278308319,150.0,0.00016451,2]
[320301495,1711278308700,150.0,0.00016472,2]
[320301496,1711278309061,150.0,0.00016493,2]
[320301497,1711278309389,150.0,0.00016514,2]
[320301498,1711278309734,150.0,0.00016535,2]
[320301499,1711278310606,150.0,0.00016556,2]
[320301500,1711278311673,150.0,0.00016577,2]
[320301501,1711278311761,150.0,0.00016598,2]
[320301502,1711278311837,150.0,0.00016619,2]
[320301503,1711278311997,150.0,0.0001664,2]
[320301504,1711278312306,150.0,0.0001666,2]
[320301505,1711278312633,150.0,0.00016681,2]
[320301506,1711278312962,150.0,0.00016702,2]
[320301507,1711278313287,150.0,0.00016723,2]
[320301508,1711278313610,150.0,0.00016744,2]
[320301509,1711278313946,150.0,0.00016765,2]
[320301510,1711278314163,22159.16074746,0.0001799,2]
[320301511,1711278314293,150.0,0.00016786,2]
[320301512,1711278314643,150.0,0.00016807,2]
[320301513,1711278315499,150.0,0.00016828,2]
[320301514,1711278315820,150.0,0.00016849,2]
[320301515,1711278316140,150.0,0.0001687,2]
[320301516,1711278316494,150.0,0.00016891,2]
[320301517,1711278316782,150.0,0.00016912,2]
[320301518,1711278317141,150.0,0.00016933,2]
[320301519,1711278317476,150.0,0.00016953,2]
[320301520,1711278317886,322.21342908,0.000179,2]
[320301521,1711278318371,150.0,0.00016974,2]
[320301522,1711278318701,150.0,0.00016995,2]
[320301523,1711278319014,150.0,0.00017016,2]
[320301524,1711278319579,150.0,0.00017037,2]
[320301525,1711278319927,150.0,0.00017058,2]
[320301526,1711278320266,150.0,0.00017079,2]
[320301527,1711278321127,150.0,0.000171,2]
[320301528,1711278321478,150.0,0.00017121,2]
[320301529,1711278322279,150.0,0.00017142,2]
[320301530,1711278322334,150.0,0.00017163,2]
[320301531,1711278322485,150.0,0.00017184,2]
[320301532,1711278322789,150.0,0.00017205,2]
[320301533,1711278323512,150.0,0.00017226,2]
[320301534,1711278323881,150.0,0.00017247,2]
[320301535,1711278324238,150.0,0.00017267,2]
[320301536,1711278324581,150.0,0.00017288,2]
[320301537,1711278324953,150.0,0.00017309,2]
[320301538,1711278325388,150.0,0.0001733,2]
[320301539,1711278325683,150.0,0.00017351,2]
[320301540,1711278326038,150.0,0.00017372,2]
[320301541,1711278326395,150.0,0.00017393,2]
[320301542,1711278326771,150.0,0.00017414,2]
[320301543,1711278327227,150.0,0.00017435,2]
[320301544,1711278327587,150.0,0.00017456,2]
[320301545,1711278327997,150.0,0.00017477,2]
[320301546,1711278328381,150.0,0.00017498,2]
[320301547,1711278328712,150.0,0.00017519,2]
[320301548,1711278329043,150.0,0.0001754,2]
[320301549,1711278329963,150.0,0.0001756,2]
[320301550,1711278330350,150.0,0.00017581,2]
[320301551,1711278330666,150.0,0.00017602,2]
[320301552,1711278331020,150.0,0.00017623,2]
[320301553,1711278331373,150.0,0.00017644,2]
[320301554,1711278332006,150.0,0.00017665,2]
[320301555,1711278332076,150.0,0.00017686,2]
[320301556,1711278332726,150.0,0.00017707,2]
[320301557,1711278332795,150.0,0.00017728,2]
[320301558,1711278333102,150.0,0.00017749,2]
[320301559,1711278333436,150.0,0.0001777,2]
[320301560,1711278333795,150.0,0.00017791,2]
[320301561,1711278334114,150.0,0.00017812,2]
[320301562,1711278334474,150.0,0.00017833,2]
[320301563,1711278334799,150.0,0.00017853,2]
[320301564,1711278335253,150.0,0.00017874,2]
[320301565,1711278335609,150.0,0.00017895,2]
[320301566,1711278335908,150.0,0.00017916,2]
[320301567,1711278336259,150.0,0.00017937,2]
[320301568,1711278336601,150.0,0.00017958,2]
[320301569,1711278336936,150.0,0.00017979,2]
[320301570,1711278337305,251.29816889,0.00018,2]
[320301571,1711278339275,150.0,0.000162,2]
[320301572,1711278339608,150.0,0.00016258,2]
[320301573,1711278339936,150.0,0.00016316,2]
[320301574,1711278340284,150.0,0.00016374,2]
[320301575,1711278340635,150.0,0.00016432,2]
[320301576,1711278340981,150.0,0.0001649,2]
[320301577,1711278341338,150.0,0.00016548,2]
[320301578,1711278341669,150.0,0.00016606,2]
[320301579,1711278342007,150.0,0.00016665,2]
[320301580,1711278342340,150.0,0.00016723,2]
[320301581,1711278343054,150.0,0.00016781,2]
[320301582,1711278343171,150.0,0.00016839,2]
[320301583,1711278343358,150.0,0.00016897,2]
[320301584,1711278343675,150.0,0.00016955,2]
[320301585,1711278344004,150.0,0.00017013,2]
[320301586,1711278344347,150.0,0.00017071,2]
[320301587,1711278344724,150.0,0.00017129,2]
[320301588,1711278345090,150.0,0.00017187,2]
[320301589,1711278345419,150.0,0.00017245,2]
[320301590,1711278346307,150.0,0.00017303,2]
[320301591,1711278347151,150.0,0.00017361,2]
[320301592,1711278347450,150.0,0.00017419,2]
[320301593,1711278347789,150.0,0.00017477,2]
[320301594,1711278348116,150.0,0.00017535,2]
[320301595,1711278349953,150.0,0.00017594,2]
[320301596,1711278350231,150.0,0.00017652,2]
[320301597,1711278350655,150.0,0.0001771,2]
[320301598,1711278350992,150.0,0.00017768,2]
[320301599,1711278351311,150.0,0.00017826,2]
[320301600,1711278351680,150.0,0.00017884,2]
[320301601,1711278352024,150.0,0.00017942,2]
[320301602,1711278352974,192.33742767,0.00018,2]
[320301603,1711278359119,150.0,0.000162,2]
[320301604,1711278359502,150.0,0.00016246,2]
[320301605,1711278359770,150.0,0.00016292,2]
[320301606,1711278360124,150.0,0.00016338,2]
[320301607,1711278360336,211.93,0.00017637,2]
[320301608,1711278360649,150.0,0.00016385,2]
[320301609,1711278361013,150.0,0.00016431,2]
[320301610,1711278361361,150.0,0.00016477,2]
[320301611,1711278361706,150.0,0.00016523,2]
[320301612,1711278362137,150.0,0.00016569,2]
[320301613,1711278362474,150.0,0.00016615,2]
[320301614,1711278362877,150.0,0.00016662,2]
[320301615,1711278363195,150.0,0.00016708,2]
[320301616,1711278363662,150.0,0.00016754,2]
[320301617,1711278364498,150.0,0.000168,2]
[320301618,1711278364603,150.0,0.00016846,2]
[320301619,1711278364678,150.0,0.00016892,2]
[320301620,1711278365030,150.0,0.00016938,2]
[320301621,1711278365377,150.0,0.00016985,2]
[320301622,1711278365741,150.0,0.00017031,2]
[320301623,1711278366046,150.0,0.00017077,2]
[320301624,1711278366378,150.0,0.00017123,2]
[320301625,1711278366712,150.0,0.00017169,2]
[320301626,1711278367073,150.0,0.00017215,2]
[320301627,1711278367419,150.0,0.00017262,2]
[320301628,1711278367763,150.0,0.00017308,2]
[320301629,1711278368107,150.0,0.00017354,2]
[320301630,1711278368437,150.0,0.000174,2]
[320301631,1711278368997,150.0,0.00017446,2]
[320301632,1711278369384,150.0,0.00017492,2]
[320301633,1711278369746,150.0,0.00017538,2]
[320301634,1711278370067,150.0,0.00017585,2]
[320301636,1711278370392,150.0,0.00017631,2]
[320301637,1711278370768,150.0,0.00017677,2]
[320301638,1711278371100,150.0,0.00017723,2]
[320301639,1711278371992,150.0,0.00017769,2]
[320301640,1711278372325,150.0,0.00017815,2]
[320301641,1711278372654,150.0,0.00017862,2]
[320301642,1711278372706,172.2,0.00017637,2]
[320301643,1711278372985,150.0,0.00017908,2]
[320301644,1711278373313,150.0,0.00017954,2]
[320301645,1711278374210,190.616587,0.00018,2]
[320301646,1711278376195,150.0,0.000162,2]
[320301647,1711278376509,150.0,0.000165,2]
[320301648,1711278376891,150.0,0.000168,2]
[320301649,1711278377176,150.0,0.000171,2]
[320301650,1711278377523,150.0,0.000174,2]
[320301651,1711278377850,150.0,0.000177,2]
[320301652,1711278378176,150.0,0.00018,2]
[320301653,1711278381903,150.0,0.000162,2]
[320301654,1711278383984,150.0,0.000162,2]
[320301655,1711278384329,150.0,0.00018,2]
[320301656,1711278388522,150.0,0.000162,2]
[320301657,1711278388885,150.0,0.00016338,2]
[320301658,1711278389238,150.0,0.00016477,2]
[320301659,1711278389589,150.0,0.00016615,2]
[320301660,1711278389914,150.0,0.00016754,2]
[320301661,1711278390488,150.0,0.00016892,2]
[320301662,1711278390677,150.0,0.00017031,2]
[320301663,1711278391006,150.0,0.00017169,2]
[320301664,1711278391481,150.0,0.00017308,2]
[320301665,1711278391813,150.0,0.00017446,2]
[320301666,1711278392135,150.0,0.00017585,2]
[320301667,1711278392464,150.0,0.00017723,2]
[320301668,1711278392827,150.0,0.00017862,2]
[320301669,1711278393143,150.0,0.00018,2]
[320301670,1711278395591,150.0,0.000162,2]
[320301671,1711278395661,150.0,0.000168,2]
[320301672,1711278395948,150.0,0.000174,2]
[320301673,1711278396301,159.00605537,0.00018,2]
[320301674,1711278405928,328.74,0.00017943,2]
[320301675,1711278406016,328.74,0.00017992,2]
[320301676,1711278424148,471.1169,0.000179,2]
[320301678,1711278466563,250.0,0.00017694,2]
[320301679,1711278513777,174.4,0.00017666,2]
[320301680,1711278521686,2500.0,0.000175,2]
[320301681,1711278541151,1208.09,0.00017671,2]
[320301682,1711278614853,229.814144,0.0001799,2]
[320301683,1711278615979,792.96,0.00017672,2]
[320301684,1711278619384,170.344182,0.00017534,2]
[320301685,1711278620612,48545.55756839,0.00017838,2]
[320301695,1711278631446,-528.196971,0.00018,2]
[320301697,1711278631508,-627.33706457,0.00018,2]
[320301698,1711278631566,-279.92831739,0.00018,2]
[320301699,1711278631683,-2082.23650658,0.00018,2]
[320301700,1711278631696,-1598.40144442,0.00018,2]
[320301701,1711278631709,-21491.10688922,0.00018,2]
[320301702,1711278631720,-581.54629026,0.00018,2]
[320301703,1711278631739,-1259.58718006,0.00018,2]
[320301737,1711278637460,-1138.934,0.00018,2]
[320301738,1711278637472,-600.5,0.00018,2]
[320301739,1711278637484,-21219.41114669,0.00018,2]
[320301740,1711278637500,-2837.90764307,0.00018,2]
[320301741,1711278637514,-715.5495421,0.00018,2]
[320301742,1711278637526,-383.65,0.00018,2]
[320301743,1711278637538,-261.9,0.00018,2]
[320301744,1711278637554,-849.33,0.00018,2]
[320301745,1711278637566,-325.82,0.00018,2]
[320301747,1711278638024,-514.07273456,0.00018,2]
[320301748,1711278638070,-346.49127393,0.00018,2]
[320301749,1711278638083,-1375.69888513,0.00018,2]
[320301750,1711278638095,-165956.51062009,0.00018,2]
[320301751,1711278638108,-8296.6349998,0.00018,2]
[320301752,1711278638121,-2408.47890093,0.00018,2]
[320301776,1711278641851,-387.74212692,0.00018,2]
[320301777,1711278641862,-2220.92477548,0.00018,2]
[320301792,1711278642488,-1302.346315,0.00018,2]
[320301794,1711278642500,-6605.32142668,0.00018,2]
[320301796,1711278642512,-4107.89910943,0.00018,2]
[320301799,1711278642530,-1669.97144134,0.00018,2]
[320301800,1711278642541,-599.31971816,0.00018,2]
[320301801,1711278642553,-2750.07434954,0.00018,2]
[320301802,1711278642585,-2146.42305793,0.00018,2]
[320301803,1711278642596,-20244.20763299,0.00018,2]
[320301804,1711278642607,-3876.39872828,0.00018,2]
[320301805,1711278642629,-16321.49304735,0.00018,2]
[320301806,1711278642729,-1594.46534987,0.00018,2]
[320301807,1711278642841,-3522.75977436,0.00018,2]
[320301809,1711278642915,-377.11693109,0.00018,2]
[320301821,1711278645511,-16501.8321731,0.00018,2]
[320301842,1711278645740,-455.96632411,0.00018,2]
[320301844,1711278645752,-1271.95986,0.00018,2]
[320301849,1711278645852,-59695.11679995,0.00018,2]
[320301850,1711278645864,-65150.0,0.00018,2]
[320301856,1711278649883,347.52188183,0.00017999,2]
[320301857,1711278652514,300.0,0.000179,2]
[320301858,1711278652546,2541.09384033,0.00017999,2]
[320301859,1711278679997,250.0,0.00017641,2]
[320301860,1711278690860,151.032419,0.00017999,3]
[320301861,1711278693434,151.032419,0.00017999,3]
[320301862,1711278694275,151.032419,0.00017999,3]
[320301863,1711278695126,151.032419,0.00017999,3]
[320301864,1711278695997,155.0,0.00017999,2]
[320301865,1711278696082,151.032419,0.00017999,3]
[320301866,1711278697197,151.032419,0.00017999,3]
[320301867,1711278698272,151.032419,0.00017999,3]
[320301868,1711278700395,151.032419,0.00017999,3]
[320301869,1711278705647,2500.0,0.000179,2]
[320301870,1711278708329,151.032419,0.00017999,2]
[320301871,1711278709874,151.032419,0.00017999,2]
[320301872,1711278712527,151.032419,0.00017999,2]
[320301873,1711278720684,155.0,0.00017999,2]
[320301874,1711278721699,327.98,0.00015721,2]
[320301875,1711278721790,327.98,0.00017985,2]
[320301876,1711278722608,150.0,0.00017999,2]
[320301877,1711278726275,151.032419,0.00017999,2]
[320301878,1711278727191,151.032419,0.00017999,2]
[320301879,1711278728029,151.032419,0.00017999,2]
[320301880,1711278728752,151.032419,0.00017999,2]
[320301881,1711278729524,151.032419,0.00017999,2]
[320301882,1711278730436,151.032419,0.00017999,2]
[320301883,1711278736574,151.032419,0.00017999,3]
[320301884,1711278738694,155.0,0.00017999,2]
[320301885,1711278742475,155.0,0.00017999,2]
[320301886,1711278743614,151.032419,0.00017999,3]
[320301887,1711278755901,155.0,0.00017999,2]
[320301888,1711278756660,156.03332432,0.00017999,2]
[320301889,1711278770018,151.032419,0.00017999,3]